fUSD/lending_fUSD_20250118
["ID","MTS","AMOUNT","RATE_DAILY","PERIOD"]
[349424387,1737174656131,-500.0,0.00020996,2]
[349424388,1737174656140,-151.0,0.00020996,2]
[349424389,1737174656149,-500.0,0.00020996,2]
[349424390,1737174656159,-500.0,0.00020996,2]
[349424391,1737174656168,-151.0,0.00020996,2]
[349424392,1737174656178,-151.0,0.00020996,2]
[349424393,1737174656187,-242.597816,0.00020996,2]
[349424394,1737174656196,-182.593434,0.00020996,2]
[349424395,1737174656207,-500.0,0.00020996,2]
[349424396,1737174656216,-151.318702,0.00020996,2]
[349424397,1737174656226,-151.0,0.00020996,2]
[349424398,1737174656235,-276.638576,0.00020996,2]
[349424399,1737174656244,-500.0,0.00020996,2]
[349424400,1737174656253,-500.0,0.00020996,2]
[349424401,1737174656263,-151.0,0.00020996,2]
[349424402,1737174656271,-151.0,0.00020996,2]
[349424403,1737174656281,-522.76543603,0.00020996,2]
[349424404,1737174656294,-151.0,0.00020996,2]
[349424405,1737174656303,-157.847608,0.00020996,2]
[349424406,1737174656313,-500.0,0.00020996,2]
[349424407,1737174656322,-1211.18,0.00020996,2]
[349424408,1737174656332,-500.0,0.00020996,2]
[349424409,1737174656341,-500.0,0.00020996,2]
[349424410,1737174656350,-286.497329,0.00020996,2]
[349424411,1737174656360,-500.0,0.00020996,2]
[349424412,1737174656369,-500.0,0.00020996,2]
[349424413,1737174656378,-286.497329,0.00020996,2]
[349424414,1737174656387,-500.0,0.00020996,2]
[349424415,1737174656396,-500.0,0.00020996,2]
[349424416,1737174656406,-500.0,0.00020996,2]
[349424417,1737174656415,-500.0,0.00020996,2]
[349424418,1737174656424,-500.0,0.00020996,2]
[349424419,1737174656433,-500.0,0.00020996,2]
[349424420,1737174656442,-381.2,0.00020996,2]
[349424421,1737174656451,-500.0,0.00020996,2]
[349424422,1737174656460,-500.0,0.00020996,2]
[349424423,1737174656469,-500.0,0.00020996,2]
[349424424,1737174656479,-1052.295527,0.00020996,2]
[349424425,1737174656488,-1052.295527,0.00020996,2]
[349424426,1737174656497,-500.0,0.00020996,2]
[349424427,1737174656507,-500.0,0.00020996,2]
[349424428,1737174656516,-449.68088116,0.00020996,2]
[349424429,1737174656526,-500.0,0.00020996,2]
[349424430,1737174656535,-458.07972119,0.00020996,2]
[349424431,1737174656546,-701.3,0.00020996,2]
[349424432,1737174656556,-151.0,0.00020996,2]
[349424433,1737174656565,-500.0,0.00020996,2]
[349424434,1737174656574,-500.0,0.00020996,2]
[349424435,1737174656583,-500.0,0.00020996,2]
[349424436,1737174656592,-500.0,0.00020996,2]
[349424437,1737174656602,-500.0,0.00020996,2]
[349424438,1737174656613,-1308.933959,0.00020996,2]
[349424439,1737174656622,-500.0,0.00020996,2]
[349424440,1737174656631,-500.0,0.00020996,2]
[349424441,1737174656641,-1308.933959,0.00020996,2]
[349424442,1737174656650,-633.51,0.00020996,2]
[349424443,1737174656662,-633.51,0.00020996,2]
[349424444,1737174656672,-500.0,0.00020996,2]
[349424445,1737174656682,-500.0,0.00020996,2]
[349424446,1737174656691,-500.0,0.00020996,2]
[349424447,1737174656701,-500.0,0.00020996,2]
[349424448,1737174656710,-500.0,0.00020996,2]
[349424449,1737174656719,-547.43,0.00020996,2]
[349424450,1737174656729,-547.43,0.00020996,2]
[349424451,1737174656739,-150.64504511,0.00020996,2]
[349424452,1737174656749,-500.0,0.00020996,2]
[349424453,1737174656759,-500.0,0.00020996,2]
[349424454,1737174656769,-500.0,0.00020996,2]
[349424455,1737174656778,-500.0,0.00020996,2]
[349424456,1737174656916,-500.0,0.00020996,2]
[349424457,1737174656926,-500.0,0.00020996,2]
[349424458,1737174656936,-500.0,0.00020996,2]
[349424459,1737174656945,-500.0,0.00020996,2]
[349424460,1737174656955,-500.0,0.00020996,2]
[349424461,1737174656964,-500.0,0.00020996,2]
[349424462,1737174656973,-500.0,0.00020996,2]
[349424463,1737174656984,-500.0,0.00020996,2]
[349424464,1737174656993,-500.0,0.00020996,2]
[349424465,1737174657003,-561.52644566,0.00020996,2]
[349424466,1737174657013,-500.0,0.00020996,2]
[349424467,1737174657023,-588.55687987,0.00020996,2]
[349424468,1737174657035,-500.0,0.00020996,2]
[349424469,1737174657047,-500.0,0.00020996,2]
[349424470,1737174657056,-1135.06,0.00020996,2]
[349424471,1737174657067,-500.0,0.00020996,2]
[349424472,1737174657076,-500.0,0.00020996,2]
[349424473,1737174657085,-500.0,0.00020996,2]
[349424474,1737174657095,-500.0,0.00020996,2]
[349424475,1737174657105,-500.0,0.00020996,2]
[349424476,1737174657114,-500.0,0.00020996,2]
[349424477,1737174657123,-2596.81,0.00020996,2]
[349424478,1737174657132,-500.0,0.00020996,2]
[349424479,1737174657142,-500.0,0.00020996,2]
[349424480,1737174657151,-151.0,0.00020996,2]
[349424481,1737174657160,-500.0,0.00020996,2]
[349424482,1737174657170,-151.0,0.00020996,2]
[349424483,1737174657179,-151.0,0.00020996,2]
[349424484,1737174657189,-500.0,0.00020996,2]
[349424485,1737174657198,-611.47956126,0.00020996,2]
[349424486,1737174657208,-500.0,0.00020996,2]
[349424487,1737174657217,-500.0,0.00020996,2]
[349424488,1737174657226,-500.0,0.00020996,2]
[349424489,1737174657235,-500.0,0.00020996,2]
[349424490,1737174657244,-500.0,0.00020996,2]
[349424491,1737174657253,-2681.17,0.00020996,2]
[349424492,1737174657263,-232.26743854,0.00020996,2]
[349424493,1737174657273,-1595.592835,0.00020996,2]
[349424494,1737174657283,-151.0,0.00020996,2]
[349424495,1737174657294,-151.277411,0.00020996,2]
[349424496,1737174657303,-2615.97,0.00020996,2]
[349424497,1737174657313,-1882.91,0.00020996,2]
[349424498,1737174657322,-884.31,0.00020996,2]
[349424499,1737174657331,-884.31,0.00020996,2]
[349424500,1737174657340,-2279.54,0.00020996,2]
[349424501,1737174657349,-2279.54,0.00020996,2]
[349424502,1737174657358,-500.0,0.00020996,2]
[349424503,1737174657368,-500.0,0.00020996,2]
[349424504,1737174657378,-1915.3171443,0.00020996,2]
[349424505,1737174657387,-151.0,0.00020996,2]
[349424506,1737174657396,-1295.34,0.00020996,2]
[349424507,1737174657406,-1295.34,0.00020996,2]
[349424508,1737174657417,-1280.37,0.00020996,2]
[349424509,1737174657426,-1280.37,0.00020996,2]
[349424510,1737174657436,-716.49,0.00020996,2]
[349424511,1737174657445,-692.773005,0.00020996,2]
[349424512,1737174657454,-659.89,0.00020996,2]
[349424513,1737174657463,-692.773005,0.00020996,2]
[349424514,1737174657473,-794.09,0.00020996,2]
[349424515,1737174657482,-2443.8923187,0.00020996,2]
[349424516,1737174657491,-837.12,0.00020996,2]
[349424517,1737174657501,-500.0,0.00020996,2]
[349424518,1737174657510,-151.0,0.00020996,2]
[349424519,1737174657519,-898.55,0.00020996,2]
[349424520,1737174657528,-500.0,0.00020996,2]
[349424521,1737174657538,-500.0,0.00020996,2]
[349424522,1737174657549,-744.87,0.00020996,2]
[349424523,1737174657558,-500.0,0.00020996,2]
[349424524,1737174657567,-500.0,0.00020996,2]
[349424525,1737174657576,-1187.63,0.00020996,2]
[349424526,1737174657586,-954.47,0.00020996,2]
[349424527,1737174657596,-500.0,0.00020996,2]
[349424528,1737174657605,-1002.52,0.00020996,2]
[349424529,1737174657615,-717.9,0.00020996,2]
[349424530,1737174657624,-151.0,0.00020996,2]
[349424531,1737174657634,-500.0,0.00020996,2]
[349424532,1737174657643,-151.0,0.00020996,2]
[349424533,1737174657653,-1152.27,0.00020996,2]
[349424534,1737174657662,-500.0,0.00020996,2]
[349424535,1737174657671,-500.0,0.00020996,2]
[349424536,1737174657682,-3030.8,0.00020996,2]
[349424537,1737174657691,-500.0,0.00020996,2]
[349424538,1737174657701,-500.0,0.00020996,2]
[349424539,1737174657710,-500.0,0.00020996,2]
[349424540,1737174657719,-500.0,0.00020996,2]
[349424541,1737174657729,-528.70322812,0.00020996,2]
[349424542,1737174657738,-1199.54,0.00020996,2]
[349424543,1737174657747,-500.0,0.00020996,2]
[349424544,1737174657756,-500.0,0.00020996,2]
[349424545,1737174657765,-500.0,0.00020996,2]
[349424546,1737174657774,-646.74,0.00020996,2]
[349424547,1737174657783,-1257.35,0.00020996,2]
[349424548,1737174657794,-1151.33,0.00020996,2]
[349424549,1737174657803,-895.85,0.00020996,2]
[349424550,1737174657812,-500.0,0.00020996,2]
[349424551,1737174657821,-500.0,0.00020996,2]
[349424552,1737174657831,-500.0,0.00020996,2]
[349424553,1737174657840,-500.0,0.00020996,2]
[349424554,1737174657850,-290.72787186,0.00020996,2]
[349424555,1737174657860,-1202.7,0.00020996,2]
[349424556,1737174657869,-500.0,0.00020996,2]
[349424557,1737174657878,-151.0,0.00020996,2]
[349424558,1737174657887,-1013.8814553,0.00020996,2]
[349424559,1737174657897,-500.0,0.00020996,2]
[349424560,1737174657906,-500.0,0.00020996,2]
[349424561,1737174657915,-834.33,0.00020996,2]
[349424562,1737174657924,-500.0,0.00020996,2]
[349424563,1737174657934,-500.0,0.00020996,2]
[349424564,1737174657943,-503.2,0.00020996,2]
[349424565,1737174657952,-500.0,0.00020996,2]
[349424566,1737174657962,-151.0,0.00020996,2]
[349424567,1737174657971,-519.19,0.00020996,2]
[349424568,1737174657981,-628.48,0.00020996,2]
[349424569,1737174657990,-500.0,0.00020996,2]
[349424570,1737174657999,-500.0,0.00020996,2]
[349424571,1737174658009,-500.0,0.00020996,2]
[349424572,1737174658018,-500.0,0.00020996,2]
[349424573,1737174658030,-500.0,0.00020996,2]
[349424574,1737174658041,-500.0,0.00020996,2]
[349424575,1737174658051,-501.58,0.00020996,2]
[349424576,1737174658061,-500.0,0.00020996,2]
[349424577,1737174658070,-500.0,0.00020996,2]
[349424578,1737174658079,-3032.53,0.00020996,2]
[349424579,1737174658089,-1124.4648863,0.00020996,2]
[349424580,1737174658100,-500.0,0.00020996,2]
[349424581,1737174658110,-4149.44,0.00020996,2]
[349424582,1737174658121,-1039.44,0.00020996,2]
[349424583,1737174658131,-503.2166202,0.00020996,2]
[349424584,1737174658140,-500.0,0.00020996,2]
[349424585,1737174658150,-773.38,0.00020996,2]
[349424586,1737174658159,-4280.24,0.00020996,2]
[349424587,1737174658169,-511.68,0.00020996,2]
[349424588,1737174658178,-151.0,0.00020996,2]
[349424589,1737174658188,-620.83,0.00020996,2]
[349424590,1737174658198,-500.0,0.00020996,2]
[349424591,1737174658207,-151.0,0.00020996,2]
[349424592,1737174658217,-2619.8,0.00020996,2]
[349424593,1737174658226,-457.35603,0.00020996,2]
[349424594,1737174658236,-966.18,0.00020996,2]
[349424595,1737174658246,-339.24576233,0.00020996,2]
[349424596,1737174658256,-500.0,0.00020996,2]
[349424597,1737174658267,-153.522699,0.00020996,2]
[349424598,1737174658276,-714.06,0.00020996,2]
[349424599,1737174658286,-684.85,0.00020996,2]
[349424600,1737174658295,-457.35603,0.00020996,2]
[349424601,1737174658305,-500.0,0.00020996,2]
[349424602,1737174658314,-500.0,0.00020996,2]
[349424603,1737174658323,-2280.07,0.00020996,2]
[349424604,1737174658333,-1358.34,0.00020996,2]
[349424605,1737174658342,-500.0,0.00020996,2]
[349424606,1737174658351,-500.0,0.00020996,2]
[349424607,1737174658361,-151.0,0.00020996,2]
[349424608,1737174658370,-10000.0,0.00020996,2]
[349424609,1737174658379,-925.12,0.00020996,2]
[349424610,1737174658388,-10000.0,0.00020996,2]
[349424611,1737174658397,-500.0,0.00020996,2]
[349424612,1737174658407,-834.67,0.00020996,2]
[349424613,1737174658416,-500.0,0.00020996,2]
[349424614,1737174658425,-500.0,0.00020996,2]
[349424615,1737174658434,-1514.56,0.00020996,2]
[349424616,1737174658443,-500.0,0.00020996,2]
[349424617,1737174658453,-933.81,0.00020996,2]
[349424618,1737174658462,-500.0,0.00020996,2]
[349424619,1737174658471,-500.0,0.00020996,2]
[349424620,1737174658481,-500.0,0.00020996,2]
[349424621,1737174658490,-469.8154272,0.00020996,2]
[349424622,1737174658499,-500.0,0.00020996,2]
[349424623,1737174658508,-500.0,0.00020996,2]
[349424624,1737174658517,-500.0,0.00020996,2]
[349424625,1737174658526,-500.0,0.00020996,2]
[349424626,1737174658536,-2485.8,0.00020996,2]
[349424627,1737174658546,-556.89,0.00020996,2]
[349424628,1737174658555,-1304.12,0.00020996,2]
[349424629,1737174658564,-908.58,0.00020996,2]
[349424630,1737174658573,-151.0,0.00020996,2]
[349424631,1737174658582,-164.512187,0.00020996,2]
[349424632,1737174658591,-512.65,0.00020996,2]
[349424633,1737174658601,-500.0,0.00020996,2]
[349424634,1737174658610,-500.0,0.00020996,2]
[349424635,1737174658620,-2618.83,0.00020996,2]
[349424636,1737174658629,-500.0,0.00020996,2]
[349424637,1737174658638,-500.0,0.00020996,2]
[349424638,1737174658648,-573.46,0.00020996,2]
[349424639,1737174658657,-500.0,0.00020996,2]
[349424640,1737174658666,-753.19,0.00020996,2]
[349424641,1737174658675,-500.0,0.00020996,2]
[349424642,1737174658684,-1445.48,0.00020996,2]
[349424643,1737174658694,-543.22,0.00020996,2]
[349424644,1737174658703,-500.0,0.00020996,2]
[349424645,1737174658712,-500.0,0.00020996,2]
[349424646,1737174658721,-500.0,0.00020996,2]
[349424647,1737174658731,-2120.35,0.00020996,2]
[349424648,1737174658741,-500.0,0.00020996,2]
[349424649,1737174658751,-500.0,0.00020996,2]
[349424650,1737174658760,-500.0,0.00020996,2]
[349424651,1737174658770,-803.96,0.00020996,2]
[349424652,1737174658779,-500.0,0.00020996,2]
[349424653,1737174658788,-500.0,0.00020996,2]
[349424654,1737174658800,-151.0,0.00020996,2]
[349424655,1737174658810,-500.0,0.00020996,2]
[349424656,1737174658819,-799.62,0.00020996,2]
[349424657,1737174658829,-916.46,0.00020996,2]
[349424658,1737174658838,-721.83,0.00020996,2]
[349424659,1737174658847,-595.71,0.00020996,2]
[349424660,1737174658856,-500.0,0.00020996,2]
[349424661,1737174658866,-500.0,0.00020996,2]
[349424662,1737174658875,-500.0,0.00020996,2]
[349424663,1737174658885,-500.0,0.00020996,2]
[349424664,1737174658895,-500.0,0.00020996,2]
[349424665,1737174658904,-500.0,0.00020996,2]
[349424666,1737174658914,-504.73,0.00020996,2]
[349424667,1737174658923,-500.0,0.00020996,2]
[349424668,1737174658933,-500.0,0.00020996,2]
[349424669,1737174658943,-500.0,0.00020996,2]
[349424670,1737174658953,-500.0,0.00020996,2]
[349424671,1737174658963,-500.0,0.00020996,2]
[349424672,1737174658972,-500.0,0.00020996,2]
[349424673,1737174658982,-2730.64,0.00020996,2]
[349424674,1737174658992,-500.0,0.00020996,2]
[349424675,1737174659001,-330.789281,0.00020996,2]
[349424676,1737174659010,-151.0,0.00020996,2]
[349424677,1737174659020,-500.0,0.00020996,2]
[349424678,1737174659032,-500.0,0.00020996,2]
[349424679,1737174659043,-330.789281,0.00020996,2]
[349424680,1737174659055,-151.0,0.00020996,2]
[349424681,1737174659066,-527.86,0.00020996,2]
[349424682,1737174659076,-382.46993294,0.00020996,2]
[349424683,1737174659085,-500.0,0.00020996,2]
[349424684,1737174659094,-926.03,0.00020996,2]
[349424685,1737174659105,-759.73,0.00020996,2]
[349424686,1737174659115,-299.778187,0.00020996,2]
[349424687,1737174659125,-151.0,0.00020996,2]
[349424688,1737174659134,-500.0,0.00020996,2]
[349424689,1737174659144,-299.778187,0.00020996,2]
[349424690,1737174659153,-500.0,0.00020996,2]
[349424691,1737174659163,-295.99304,0.00020996,2]
[349424692,1737174659172,-22527.21836169,0.00020996,2]
[349424693,1737174659182,-334.01453175,0.00020997,2]
[349424694,1737174659191,-523.6,0.00020997,2]
[349424695,1737174659201,-523.6,0.00020997,2]
[349424696,1737174659210,-500.0,0.00020997,2]
[349424697,1737174659219,-500.0,0.00020997,2]
[349424698,1737174659228,-810.72,0.00020997,2]
[349424699,1737174659238,-810.72,0.00020997,2]
[349424700,1737174659248,-510.82307445,0.00020997,2]
[349424701,1737174659258,-505.71404962,0.00020997,2]
[349424702,1737174659267,-500.0,0.00020997,2]
[349424703,1737174659276,-500.0,0.00020997,2]
[349424704,1737174659285,-500.0,0.00020997,2]
[349424705,1737174659296,-500.0,0.00020997,2]
[349424706,1737174659306,-500.0,0.00020997,2]
[349424707,1737174659315,-500.0,0.00020997,2]
[349424708,1737174659324,-500.0,0.00020997,2]
[349424709,1737174659333,-500.0,0.00020997,2]
[349424710,1737174659343,-500.0,0.00020997,2]
[349424711,1737174659353,-500.0,0.00020997,2]
[349424712,1737174659362,-500.0,0.00020997,2]
[349424713,1737174659371,-500.0,0.00020997,2]
[349424714,1737174659382,-500.0,0.00020997,2]
[349424715,1737174659391,-500.0,0.00020997,2]
[349424716,1737174659400,-500.0,0.00020997,2]
[349424717,1737174659410,-500.0,0.00020997,2]
[349424718,1737174659419,-500.0,0.00020997,2]
[349424719,1737174659428,-151.0,0.00020997,2]
[349424720,1737174659438,-151.0,0.00020997,2]
[349424721,1737174659447,-151.0,0.00020997,2]
[349424722,1737174659456,-151.0,0.00020997,2]
[349424723,1737174659466,-151.0,0.00020997,2]
[349424724,1737174659477,-500.0,0.00020997,2]
[349424725,1737174659610,-500.0,0.00020997,2]
[349424726,1737174659619,-151.0,0.00020997,2]
[349424727,1737174659629,-500.0,0.00020997,2]
[349424728,1737174659638,-500.0,0.00020997,2]
[349424729,1737174659647,-500.0,0.00020997,2]
[349424730,1737174659657,-500.0,0.00020997,2]
[349424731,1737174659666,-151.0,0.00020997,2]
[349424732,1737174659676,-500.0,0.00020997,2]
[349424733,1737174659685,-513.69794764,0.00020997,2]
[349424734,1737174659695,-500.0,0.00020997,2]
[349424735,1737174659704,-500.0,0.00020997,2]
[349424736,1737174659714,-511.49522372,0.00020997,2]
[349424737,1737174659723,-151.0,0.00020997,2]
[349424738,1737174659733,-500.0,0.00020997,2]
[349424739,1737174659743,-608.2381944,0.00020997,2]
[349424740,1737174659753,-1211.18,0.00020997,2]
[349424741,1737174659762,-1211.18,0.00020997,2]
[349424742,1737174659772,-1211.18,0.00020997,2]
[349424743,1737174659782,-500.0,0.00020997,2]
[349424744,1737174659791,-286.497329,0.00020997,2]
[349424745,1737174659802,-226.3553043,0.00020997,2]
[349424746,1737174659810,-286.497329,0.00020997,2]
[349424747,1737174659820,-500.0,0.00020997,2]
[349424748,1737174659829,-500.0,0.00020997,2]
[349424749,1737174659839,-517.44,0.00020997,2]
[349424750,1737174659848,-500.0,0.00020997,2]
[349424751,1737174659858,-243.66723288,0.00020997,2]
[349424752,1737174659867,-500.0,0.00020997,2]
[349424753,1737174659876,-1052.295527,0.00020997,2]
[349424754,1737174659886,-1052.295527,0.00020997,2]
[349424755,1737174659895,-526.82,0.00020997,2]
[349424756,1737174659904,-500.0,0.00020997,2]
[349424757,1737174659914,-523.45,0.00020997,2]
[349424758,1737174659923,-701.3,0.00020997,2]
[349424759,1737174659932,-701.3,0.00020997,2]
[349424760,1737174659940,-151.0,0.00020997,2]
[349424761,1737174659950,-500.0,0.00020997,2]
[349424762,1737174659959,-500.0,0.00020997,2]
[349424763,1737174659968,-324.93,0.00020997,2]
[349424764,1737174659977,-500.0,0.00020997,2]
[349424765,1737174659987,-500.0,0.00020997,2]
[349424766,1737174659995,-1308.933959,0.00020997,2]
[349424767,1737174660005,-500.0,0.00020997,2]
[349424768,1737174660014,-1308.933959,0.00020997,2]
[349424769,1737174660024,-633.51,0.00020997,2]
[349424770,1737174660037,-500.0,0.00020997,2]
[349424771,1737174660049,-500.0,0.00020997,2]
[349424772,1737174660059,-645.11827736,0.00020997,2]
[349424773,1737174660068,-500.0,0.00020997,2]
[349424774,1737174660079,-500.0,0.00020997,2]
[349424775,1737174660088,-500.0,0.00020997,2]
[349424776,1737174660098,-226.60868371,0.00020997,2]
[349424777,1737174660108,-547.43,0.00020997,2]
[349424778,1737174660118,-500.0,0.00020997,2]
[349424779,1737174660127,-500.0,0.00020997,2]
[349424780,1737174660137,-500.0,0.00020997,2]
[349424781,1737174660147,-500.0,0.00020997,2]
[349424782,1737174660157,-500.0,0.00020997,2]
[349424783,1737174660166,-500.0,0.00020997,2]
[349424784,1737174660176,-500.0,0.00020997,2]
[349424785,1737174660185,-500.0,0.00020997,2]
[349424786,1737174660194,-500.0,0.00020997,2]
[349424787,1737174660204,-500.0,0.00020997,2]
[349424788,1737174660213,-500.0,0.00020997,2]
[349424789,1737174660222,-500.0,0.00020997,2]
[349424790,1737174660231,-500.0,0.00020997,2]
[349424791,1737174660241,-500.0,0.00020997,2]
[349424792,1737174660250,-358.42922751,0.00020997,2]
[349424793,1737174660259,-500.0,0.00020997,2]
[349424794,1737174660268,-500.0,0.00020997,2]
[349424795,1737174660278,-500.0,0.00020997,2]
[349424796,1737174660288,-500.0,0.00020997,2]
[349424797,1737174660298,-1135.06,0.00020997,2]
[349424798,1737174660307,-1135.06,0.00020997,2]
[349424799,1737174660316,-1135.06,0.00020997,2]
[349424800,1737174660326,-500.0,0.00020997,2]
[349424801,1737174660335,-500.0,0.00020997,2]
[349424802,1737174660344,-500.0,0.00020997,2]
[349424803,1737174660354,-500.0,0.00020997,2]
[349424804,1737174660363,-500.0,0.00020997,2]
[349424805,1737174660372,-2596.81,0.00020997,2]
[349424806,1737174660381,-2596.81,0.00020997,2]
[349424807,1737174660390,-2596.81,0.00020997,2]
[349424808,1737174660399,-500.0,0.00020997,2]
[349424809,1737174660408,-151.0,0.00020997,2]
[349424810,1737174660418,-500.0,0.00020997,2]
[349424811,1737174660427,-500.0,0.00020997,2]
[349424812,1737174660437,-151.0,0.00020997,2]
[349424813,1737174660447,-151.0,0.00020997,2]
[349424814,1737174660457,-151.0,0.00020997,2]
[349424815,1737174660466,-159.421722,0.00020997,2]
[349424816,1737174660475,-500.0,0.00020997,2]
[349424817,1737174660484,-500.0,0.00020997,2]
[349424818,1737174660493,-500.0,0.00020997,2]
[349424819,1737174660502,-2681.17,0.00020997,2]
[349424820,1737174660511,-2681.17,0.00020997,2]
[349424821,1737174660520,-2681.17,0.00020997,2]
[349424822,1737174660530,-151.0,0.00020997,2]
[349424823,1737174660539,-2615.97,0.00020997,2]
[349424824,1737174660550,-2615.97,0.00020997,2]
[349424825,1737174660559,-2615.97,0.00020997,2]
[349424826,1737174660568,-1882.91,0.00020997,2]
[349424827,1737174660577,-884.31,0.00020997,2]
[349424828,1737174660586,-884.31,0.00020997,2]
[349424829,1737174660596,-1882.91,0.00020997,2]
[349424830,1737174660605,-884.31,0.00020997,2]
[349424831,1737174660614,-1882.91,0.00020997,2]
[349424832,1737174660623,-2279.54,0.00020997,2]
[349424833,1737174660631,-500.0,0.00020997,2]
[349424834,1737174660641,-500.0,0.00020997,2]
[349424835,1737174660651,-500.0,0.00020997,2]
[349424836,1737174660660,-151.0,0.00020997,2]
[349424837,1737174660670,-1295.34,0.00020997,2]
[349424838,1737174660679,-1280.37,0.00020997,2]
[349424839,1737174660689,-1280.37,0.00020997,2]
[349424840,1737174660698,-1280.37,0.00020997,2]
[349424841,1737174660707,-716.49,0.00020997,2]
[349424842,1737174660716,-716.49,0.00020997,2]
[349424843,1737174660727,-716.49,0.00020997,2]
[349424844,1737174660736,-692.773005,0.00020997,2]
[349424845,1737174660746,-659.89,0.00020997,2]
[349424846,1737174660756,-659.89,0.00020997,2]
[349424847,1737174660765,-659.89,0.00020997,2]
[349424848,1737174660774,-794.09,0.00020997,2]
[349424849,1737174660783,-794.09,0.00020997,2]
[349424850,1737174660792,-692.773005,0.00020997,2]
[349424851,1737174660803,-794.09,0.00020997,2]
[349424852,1737174660812,-837.12,0.00020997,2]
[349424853,1737174660821,-837.12,0.00020997,2]
[349424854,1737174660830,-837.12,0.00020997,2]
[349424855,1737174660839,-500.0,0.00020997,2]
[349424856,1737174660848,-500.0,0.00020997,2]
[349424857,1737174660857,-500.0,0.00020997,2]
[349424858,1737174660867,-151.0,0.00020997,2]
[349424859,1737174660876,-898.55,0.00020997,2]
[349424860,1737174660885,-898.55,0.00020997,2]
[349424861,1737174660895,-898.55,0.00020997,2]
[349424862,1737174660904,-500.0,0.00020997,2]
[349424863,1737174660914,-500.0,0.00020997,2]
[349424864,1737174660923,-500.0,0.00020997,2]
[349424865,1737174660932,-500.0,0.00020997,2]
[349424866,1737174660941,-245.43092016,0.00020997,2]
[349424867,1737174660951,-744.87,0.00020997,2]
[349424868,1737174660959,-744.87,0.00020997,2]
[349424869,1737174660969,-500.0,0.00020997,2]
[349424870,1737174660978,-744.87,0.00020997,2]
[349424871,1737174660987,-500.0,0.00020997,2]
[349424872,1737174660996,-500.0,0.00020997,2]
[349424873,1737174661005,-1187.63,0.00020997,2]
[349424874,1737174661014,-1187.63,0.00020997,2]
[349424875,1737174661023,-1187.63,0.00020997,2]
[349424876,1737174661036,-954.47,0.00020997,2]
[349424877,1737174661047,-954.47,0.00020997,2]
[349424878,1737174661057,-954.47,0.00020997,2]
[349424879,1737174661067,-500.0,0.00020997,2]
[349424880,1737174661078,-500.0,0.00020997,2]
[349424881,1737174661087,-500.0,0.00020997,2]
[349424882,1737174661096,-1002.52,0.00020997,2]
[349424883,1737174661108,-1002.52,0.00020997,2]
[349424884,1737174661118,-717.9,0.00020997,2]
[349424885,1737174661128,-151.0,0.00020997,2]
[349424886,1737174661137,-717.9,0.00020997,2]